Cogmind - Beta 16 @@@ ROGUE MODE // 2025.10.28 @ 19:52:41 Player: Naughtyusername Result: Self-destructed Performance ------------- Evolutions (1) 500 Regions Visited (5) 1000 Robots Destroyed (81) 405 Value Destroyed (1748) 1748 Prototype IDs (35) 700 Alien Tech Used (0) 0 Bonus (422) 422 TOTAL SCORE: 4775 Bonus ------- High Alert Combat Kills 104 Follower Combat Kills 96 Aligned with FarCom 300 Friendly Fire -78 Cogmind --------- Core Integrity 27/400 Matter 49/300 Energy 280/280 System Corruption 0% Temperature Cool (0) Movement Treading (240) Ox1 Location -9/Exiles Parts ------- > --- POWER (1) -------- Heavy Ion Engine > --- PROPULSION (3) --- Light Treads Light Treads > --- UTILITY (3) ------ Heat Sink High-capacity Storage Unit Core Analyzer > --- WEAPON (2) ------- Improved Assault Rifle Makeshift Shrapnel Gun > --- INVENTORY (20) --- Improved Ion Engine Medium Matter Pod (100) Large Matter Pod (150) High-capacity Matter Pod (200) Hardlight Generator Heavy Particle Gun Guided Plasma Cannon Proton Missile Launcher Rocket Launcher Mini Grenade Launcher Plasma Cutter Peak State ------------ > --- POWER ------------ Heavy Ion Engine > --- PROPULSION ------- Light Treads Light Treads Improved Treads > --- UTILITY ---------- High-capacity Storage Unit Core Analyzer Hardlight Generator > --- WEAPON ----------- Guided Plasma Cannon Makeshift Shrapnel Gun > --- INVENTORY -------- Improved Ion Engine Heavy Ion Engine Light Treads Light Treads Heat Sink Medium Matter Pod Medium Matter Pod Large Matter Pod High-capacity Matter Pod Heavy Particle Gun Improved Assault Rifle Improved Assault Rifle Proton Missile Launcher Rocket Launcher Mini Grenade Launcher Plasma Cutter [Rating: 30] Favorites ----------- Power Heavy Ion Engine Engine Heavy Ion Engine Propulsion Light Treads Treads Light Treads Leg Aluminum Leg Wheel Armored Wheel Utility High-capacity Storage Unit Device Hardlight Generator Storage High-capacity Storage Unit Processor Core Analyzer Protection Propulsion Shielding Weapon Improved Assault Rifle Energy Gun Heavy Particle Gun Energy Cannon Advanced Beam Cannon Ballistic Gun Improved Assault Rifle Launcher Rocket Launcher Build | -11 -10 -10 -9 -9 -9 ------- Run | Yrd Mat Min Mat Min Exi Slots Evolved 2 | . . . 2 . . Power . | . . . . . . Propulsion 1 | . . . 1 . . Utility 1 | . . . 1 . . Weapon . | . . . . . . Parts Attached 46 | 7 5 4 23 3 4 Power 5 | 1 1 . 2 . 1 Engine 5 | 1 1 . 2 . 1 Core . | . . . . . . Reactor . | . . . . . . Propulsion 14 | 2 2 2 5 1 2 Treads 11 | 2 . 2 4 1 2 Leg 2 | . 2 . . . . Wheel 1 | . . . 1 . . Hover . | . . . . . . Flight . | . . . . . . Utility 13 | 2 2 1 7 1 . Device 4 | 1 . . 3 . . Storage 3 | 1 1 . 1 . . Processor 1 | . . . . 1 . Hackware . | . . . . . . Protection 5 | . 1 1 3 . . Artifact . | . . . . . . Weapon 14 | 2 . 1 9 1 1 Energy Gun 1 | . . . 1 . . Energy Cannon 2 | . . . 1 . 1 Ballistic Gun 8 | 2 . 1 4 1 . Ballistic Cannon . | . . . . . . Launcher 3 | . . . 3 . . Special Weapon . | . . . . . . Impact Weapon . | . . . . . . Slashing Weapon . | . . . . . . Piercing Weapon . | . . . . . . Special Melee Weapon . | . . . . . . Unidentified Prototypes 4 | . . . 4 . . Parts Lost 18 | . 3 2 8 . 5 Power 3 | . 1 . 1 . 1 Propulsion 8 | . 1 1 3 . 3 Utility 5 | . 1 . 4 . . Weapon 2 | . . 1 . . 1 Highest Loss Streak 5 | . 1 1 3 . 5 To Critical Strikes 4 | . . . . . 4 Average Backups 14 | . 7 12 17 19 14 Power 1 | . . 1 1 2 2 Propulsion 3 | . 1 3 4 4 2 Utility 2 | . 2 3 2 3 3 Weapon 5 | . 2 4 6 8 5 Tool/Special . | . . . . . . Unused Backups 33 | . . . 12 6 15 Power 6 | . . . 2 . 4 Propulsion 12 | . . . 8 2 2 Utility 5 | . . . . 1 4 Weapon 9 | . . . 2 3 4 Tool/Special 1 | . . . . . 1 Average Slot Usage (%) 93 | . 91 95 90 100 98 Engine 11 | . 13 14 10 11 10 Treads 28 | . 19 26 31 33 31 Leg 1 | . 7 . . . . Device 6 | . . . 7 11 11 Storage 11 | . 14 14 11 11 11 Processor 2 | . . . . 3 11 Protection 6 | . 5 9 7 7 . Ballistic Gun 22 | . 28 27 19 22 20 Peak Build Rating 30 | 7 7 9 26 27 30 Average Rating 15 | 5 6 8 16 24 25 On Entrance 11 | . 7 7 9 21 26 Avg Prop Armor Cover (%) 7 | . 7 8 5 . . Naked Turns . | . . . . . . Heaviest Build 65 | 14 31 29 65 60 65 Greatest Support 63 | 40 40 40 63 63 63 Greatest Overweight (x) 4 | 4 1 1 1 . 1 Average Overweight (x) . | . . . . . . Largest Inventory Capacity 20 | 8 15 15 20 20 20 Average Capacity 17 | 7 14 15 17 20 20 Most Carried 20 | 1 15 15 20 20 20 Average Carried 14 | . 7 12 17 19 16 Final Capacity 20 | 8 15 15 20 20 20 Final Carried 20 | 1 15 12 20 20 11 Class Distribution -------------------- 89% | Mutant 10% | Scavenger-Mutant Dominant Class ---------------- Mutant | -10/Materials Mutant | -10/Mines Mutant | -9/Materials Mutant | -9/Mines Mutant | -9/Exiles Resources | -11 -10 -10 -9 -9 -9 ----------- Run | Yrd Mat Min Mat Min Exi Matter Collected 1855 | 320 292 139 909 54 141 Remotely . | . . . . . . Salvage Created 2761 | 118 712 142 1738 . 51 Parts 168 | 8 51 5 100 4 . Haulers Intercepted 7 | . 1 . 6 . . Recyclers Shooed 1 | 1 . . . . . Parts Field Recycled . | . . . . . . Retrieved Matter . | . . . . . . Parts Self-Destructed . | . . . . . . Prevented . | . . . . . . Parts Restored . | . . . . . . Kills | -11 -10 -10 -9 -9 -9 ------- Run | Yrd Mat Min Mat Min Exi Combat Hostiles Destroyed 65 | . 19 8 33 . 5 Guns 51 | . 19 8 23 . 1 Cannons 1 | . . . 1 . . AOE 13 | . . . 9 . 4 Classes Destroyed 12 | 3 4 1 4 . . Worker 3 | 1 . . 2 . . Builder 2 | . . . 2 . . Tunneler 3 | 2 . . . 1 . Hauler 7 | . 1 . 6 . . Recycler 3 | 1 . . 2 . . Watcher 5 | . . . 5 . . Swarmer 22 | . 5 4 13 . . Grunt 23 | . 13 1 9 . . Duelist 1 | . . . 1 . . Sentry 10 | . . . 10 . . Subdweller 1 | . 1 . . . . Assembled 7 | . . 3 . . 4 Best Kill Streak 7 | 2 3 3 7 1 4 Combat Bots Only 6 | . 3 3 6 . 4 Max Kills in Single Turn 3 | 1 1 1 3 1 2 Gunslinging . | . . . . . . Exploded 3 | . . . 3 . 2 Melee . | . . . . . . Uniques/NPCs Destroyed 1 | . . . . . 1 8R-AWN (-9/Exiles) Combat | -11 -10 -10 -9 -9 -9 -------- Run | Yrd Mat Min Mat Min Exi Hostile Shots Fired 355 | . 89 45 141 8 72 Missed 98 | . 24 18 44 2 10 Hits 257 | . 65 27 97 6 62 Melee 3 | . . 2 1 . . Projectile 254 | . 65 25 96 6 62 AOE 7 | . . . . 7 . Critical Strikes 30 | . 2 . 5 . 23 Damage Taken 3538 | . 698 333 1279 224 1004 Core 560 | . 117 70 143 25 205 Absorbed by Shields 128 | . . . 76 . 52 Redirected to Shielding 35 | . . 18 17 . . Regen/Repaired (Parts) 299 | . . . 299 . . Core Remaining (%) 62 | 100 . 25 . . . Volleys Fired 267 | 13 65 27 119 3 40 Largest 2 | 2 2 2 2 2 2 Hottest 120 | 40 40 40 91 47 120 Shots Fired 509 | 26 130 54 233 6 60 Gun 475 | 26 130 54 218 6 41 Cannon 23 | . . . 10 . 13 Launcher 11 | . . . 5 . 6 Special . | . . . . . . Kinetic 462 | 26 130 54 205 6 41 Thermal 36 | . . . 23 . 13 Explosive 11 | . . . 5 . 6 Electromagnetic . | . . . . . . Robot Hit Streak 22 | 5 17 7 21 22 16 Robot Miss Streak 3 | 3 2 2 3 2 3 Penetration Max . | . . . . . . Secondary Targets 6 | . 3 1 2 . . Max Gunslinging Chain 1 | . 1 1 1 . . Shots Hit Robots 357 | 15 90 33 165 6 48 Core Hits 155 | 6 39 12 69 4 25 Critical Kills . | . . . . . . Critical Parts Destroyed 1 | . . 1 . . . Critical Strikes 3 | . 1 1 1 . . Burn 1 | . . . 1 . . Destroy 2 | . 1 1 . . . Melee Attacks . | . . . . . . Impact . | . . . . . . Slashing . | . . . . . . Piercing . | . . . . . . Sneak Attacks . | . . . . . . Combat Hostiles . | . . . . . . Follow-up Attacks . | . . . . . . Damage Inflicted 5716 | 153 976 368 3181 89 949 Guns 4637 | 151 949 360 2390 88 699 Cannons 217 | . . . 185 . 32 Explosions 795 | . . . 577 . 218 Melee . | . . . . . . Ramming 67 | 2 27 8 29 1 . Kinetic 4431 | 151 949 360 2184 88 699 Thermal 423 | . . . 391 . 32 Explosive 795 | . . . 577 . 218 Electromagnetic . | . . . . . . Impact . | . . . . . . Slashing . | . . . . . . Piercing . | . . . . . . Highest Corruption . | . . . . . . Average Corruption . | . . . . . . Corruption Purged . | . . . . . . Corruption Blocked . | . . . . . . Overload Shots . | . . . . . . Overflow Damage 71 | . . . 63 . 8 Projectiles . | . . . . . . Explosions 71 | . . . 63 . 8 Melee . | . . . . . . Knockbacks 1 | . . 1 . . . Impact 1 | . . 1 . . . Kinetic . | . . . . . . Secondary . | . . . . . . Self-Inflicted Damage 34 | . . . 34 . . Shots 1 | . . . 1 . . Rammed 12 | 1 4 1 5 1 . Targets Rammed 15 | 2 4 1 6 2 . Kicked . | . . . . . . Crushed 3 | 1 . . 1 1 . Highest Temperature 534 | . 46 9 75 . 534 Average Temperature 65 | . 10 9 26 . 216 Received Heat Transfer 818 | . 339 27 452 . . Effects 7 | . . . . . 7 Shutdowns 1 | . . . . . 1 Matter Decay 4 | . . . . . 4 Short Circuit 1 | . . . . . 1 Damage (minor) 1 | . . . . . 1 Siege Activations . | . . . . . . Martial Activations . | . . . . . . Shielding Activations . | . . . . . . Robots Disrupted . | . . . . . . Combat Hostiles . | . . . . . . Robots Corrupted . | . . . . . . Combat Hostiles . | . . . . . . Parts Fried . | . . . . . . Impact Corruptions . | . . . . . . Robots Melted . | . . . . . . Combat Hostiles . | . . . . . . Parts Melted 4 | . . 1 3 . . Heat Transferred 1014 | . . . 814 . 200 Parts Sabotaged . | . . . . . . Parts Stolen . | . . . . . . Parts Stripped . | . . . . . . Power Chain Reactions . | . . . . . . Alert | -11 -10 -10 -9 -9 -9 ------- Run | Yrd Mat Min Mat Min Exi Maximum Alert Level 3 | . . . 3 1 . Low Security (%) 76 | 100 100 100 56 76 . Level 1 13 | . . . 20 23 . Level 2 7 | . . . 15 . . Level 3 2 | . . . 6 . . Level 4 . | . . . . . . Level 5 . | . . . . . . High Security . | . . . . . . Max Security . | . . . . . . Peak Influence 736 | 10 194 74 736 286 . Initial 286 | . . 10 8 286 . Average 146 | . 118 34 206 111 . Influence Increases 2085 | 20 553 253 1254 5 . Destroy 0b10 Robot/C 1240 | . 360 180 700 . . Destroy 0b10 Robot/NC 115 | 20 5 . 85 5 . Destroy Leader 304 | . 82 30 192 . . Allied During Kill 31 | . . 28 3 . . Successful Hack 128 | . 46 . 82 . . Select Force Hacks 120 | . 60 . 60 . . Disable Machine 15 | . . . 15 . . Destroy Structure 42 | . . . 42 . . Lose Combat Pursuer 90 | . . 15 75 . . Influence Decreases 2085 | 20 524 259 543 739 . Entered New Map 482 | . . 19 15 448 . Time Decay 1454 | 20 494 220 429 291 . Lost Part 100 | . 30 20 50 . . Lost Ally 40 | . . . 40 . . Purge Threat 9 | . . . 9 . . Squads Dispatched 8 | . 5 . 2 1 . Investigation 7 | . 4 . 2 1 . Extermination . | . . . . . . Reinforcement 1 | . 1 . . . . Assault . | . . . . . . Garrison . | . . . . . . Intercept . | . . . . . . Searches Triggered . | . . . . . . Construction Impeded . | . . . . . . Haulers Reinforced . | . . . . . . Active Scanning Responses . | . . . . . . Cargo Convoy Interrupts . | . . . . . . Stealth | -11 -10 -10 -9 -9 -9 --------- Run | Yrd Mat Min Mat Min Exi Distress Signals 6 | . 2 2 2 . . Communications Jammed . | . . . . . . Distress Signals . | . . . . . . Times Spotted 97 | . 27 15 47 1 7 Peak Tracking Total 9 | . 3 3 4 1 9 Tactical Retreats 3 | . . 1 2 . . Traps | -11 -10 -10 -9 -9 -9 ------- Run | Yrd Mat Min Mat Min Exi Traps Triggered 1 | . 1 . . . . Indirectly . | . . . . . . Trap Hack Attempts . | . . . . . . Triggered . | . . . . . . Disarmed . | . . . . . . Reprogrammed . | . . . . . . Reused 1 | . . . . . 1 Traps Extracted . | . . . . . . Installed 1 | . . . . . 1 Triggered . | . . . . . . Most Traps Carried 5 | . . . . 5 5 Machines | -11 -10 -10 -9 -9 -9 ---------- Run | Yrd Mat Min Mat Min Exi Machines Disabled 8 | . . . 1 . 7 Max in Single Turn 2 | . . . 1 . 2 Machines Repaired . | . . . . . . Machines Dismantled . | . . . . . . Machines Sabotaged . | . . . . . . Overloaded Fab Kills . | . . . . . . Hacking | -11 -10 -10 -9 -9 -9 --------- Run | Yrd Mat Min Mat Min Exi Machines Accessed 26 | . 9 . 14 1 2 Terminals 16 | . 7 . 9 . . Fabricators . | . . . . . . Repair Stations 1 | . . . 1 . . Recycling Units 4 | . 2 . 2 . . Scanalyzers 2 | . . . 2 . . Garrison Access . | . . . . . . Total Hacks 92 | . 37 . 52 1 2 Successful 53 | . 16 . 34 1 2 Failed 38 | . 21 . 17 . . Catastrophic 5 | . 3 . 2 . . Database Lockouts 1 | . . . 1 . . Manual 41 | . 23 . 17 . 1 Terminals 66 | . 33 . 33 . . Fabricators . | . . . . . . Repair Stations 9 | . . . 9 . . Recycling Units 7 | . 4 . 3 . . Scanalyzers 7 | . . . 7 . . Garrison Access . | . . . . . . Terminal Hacks 19 | . 5 . 11 1 2 Record 1 | . . . . . 1 Robot Analysis 5 | . 3 . 2 . . Prototype ID Bank 4 | . 1 . 3 . . Open Door 1 | . . . . 1 . Branch Access Points 2 | . 1 . 1 . . Unreport Threat 1 | . . . 1 . . Security Status 1 | . . . 1 . . Patrol Status 1 | . . . 1 . . Hauler Manifests 1 | . . . 1 . . Registered Components 1 | . . . 1 . . Proto ID Catalog 1 | . . . . . 1 Fabricator Hacks . | . . . . . . Repair Station Hacks 7 | . . . 7 . . Scan Component 4 | . . . 4 . . Repair 3 | . . . 3 . . Recycling Unit Hacks 2 | . 1 . 1 . . Retrieve Components 2 | . 1 . 1 . . Scanalyzer 4 | . . . 4 . . Retrieve Study 4 | . . . 4 . . Garrison Access Hacks . | . . . . . . Unauthorized Hacks 21 | . 10 . 11 . . Terminals 17 | . 8 . 9 . . Botnet 5 | . 2 . 3 . . Operators 1 | . 1 . . . . Skim 11 | . 5 . 6 . . Fabricators . | . . . . . . Repair Stations . | . . . . . . Recycling Units 4 | . 2 . 2 . . Tunnel 4 | . 2 . 2 . . Scanalyzers . | . . . . . . Garrison Access . | . . . . . . Data Cores Recovered . | . . . . . . Used . | . . . . . . Hacking Detections 19 | . 8 . 11 . . Full Trace Events 1 | . 1 . . . . Feedback Events . | . . . . . . Feedback Blocked . | . . . . . . Robot Schematics Acquired . | . . . . . . Robots Built . | . . . . . . Authchips . | . . . . . . Time . | . . . . . . Total Robot Build Rating . | . . . . . . Part Schematics Acquired . | . . . . . . Parts Built . | . . . . . . Authchips . | . . . . . . Time . | . . . . . . Total Part Build Rating . | . . . . . . Part Studies Acquired 4 | . . . 4 . . Parts Repaired 3 | . . . 3 . . Time 109 | . . . 109 . . Parts Recycled . | . . . . . . Recycled Matter . | . . . . . . Retrieved Matter . | . . . . . . Retrieved Components 11 | . 2 . 9 . . Parts Scanalyzed . | . . . . . . Part Schematics Acquired . | . . . . . . Parts Damaged . | . . . . . . Bothacking | -11 -10 -10 -9 -9 -9 ------------ Run | Yrd Mat Min Mat Min Exi Used RIF Installer . | . . . . . . Robots Hacked . | . . . . . . Non-combat . | . . . . . . Combat . | . . . . . . Robot Hacks Applied . | . . . . . . Relay Couplers Released . | . . . . . . Fabnet Peak Effective % . | . . . . . . Robots Rewired . | . . . . . . Allies Hacked . | . . . . . . Hacks Repelled . | . . . . . . Allies | -11 -10 -10 -9 -9 -9 -------- Run | Yrd Mat Min Mat Min Exi Total Allies 3 | . . 3 . . . Largest Group 3 | . . 3 2 . . Highest-Rated Group 76 | . . 76 45 . . Highest-Rated Ally 31 | . . 31 31 . . Total Orders . | . . . . . . Ally Attacks 36 | . . 32 4 . . Total Damage 497 | . . 421 76 . . Kills 10 | . . 8 2 . . Allies Corrupted . | . . . . . . Allies Melted . | . . . . . . Intel | -11 -10 -10 -9 -9 -9 ------- Run | Yrd Mat Min Mat Min Exi Active Infowar (turns) 799 | 19 88 . 692 . . Sensors 1 | . . . 1 . . Seismic 798 | 19 88 . 691 . . Robot Analysis Total 5 | . 3 . 2 . . Derelict Logs Recovered 4 | . . 2 . 2 . Drone Launches . | . . . . . . Drone Recoveries . | . . . . . . Exploration | -11 -10 -10 -9 -9 -9 ------------- Run | Yrd Mat Min Mat Min Exi Turns Passed 6338 | 120 1404 569 2512 779 954 Spaces Moved 3079 | 45 584 284 1220 467 479 Core 8 | 8 . . . . . Treads 3071 | 37 584 284 1220 467 479 Legs . | . . . . . . Wheels . | . . . . . . Hover . | . . . . . . Flight . | . . . . . . Fastest Speed 50 | 50 160 160 160 160 160 Average Speed 169 | 156 202 163 160 160 166 Slowest Speed 250 | 250 240 240 240 160 240 Overloaded Moves . | . . . . . . Propulsion Burnouts . | . . . . . . Robots Hopped . | . . . . . . Potential Cave-ins . | . . . . . . Cave-ins Triggered . | . . . . . . Exploration Rate (%) 72 | 5 94 78 93 96 67 Regions Visited 5 Branch Regions 3 Pre-discovered Areas 13 | . 3 . 6 3 1 Known Exits Taken 3 | . 1 1 1 . . Unknown Exits Taken 2 | 1 . . . 1 . Scrap Searched 2 | . . 1 . 1 . Spaces Dug 27 | . . . 18 . 9 Terrain Destroyed 75 | . . . 42 . 33 Melee . | . . . . . . Projectile 1 | . . . . . 1 AOE 74 | . . . 42 . 32 Terrain Rammed . | . . . . . . Walls Destroyed . | . . . . . . Machines Disabled . | . . . . . . Actions | -11 -10 -10 -9 -9 -9 --------- Run | Yrd Mat Min Mat Min Exi Total 3721 | 67 689 340 1551 496 578 Wait 191 | . 17 23 122 2 27 Move 3074 | 44 583 283 1219 466 479 Hop . | . . . . . . Pick Up 64 | 1 13 1 31 9 9 Fast Attach 18 | 7 2 . 8 1 . Attach 17 | . 1 3 9 . 4 Detach 3 | . 1 . 2 . . Swap 23 | . 2 1 14 2 4 Drop 48 | . 1 1 21 11 14 Fire 267 | 13 65 27 119 3 40 Melee . | . . . . . . Ram . | . . . . . . Kick . | . . . . . . Crush 15 | 2 4 1 6 2 . Escape Stasis . | . . . . . . Rewire . | . . . . . . Trap 1 | . . . . . 1 Miscellaneous . | . . . . . . Route ------- -11/Scrapyard -10/Materials (discovered 6 exits: *Mat x3 / *Min x2 / [*Sub]) -10/Mines (discovered 2 exits: *Mat x2) -9/Materials (discovered 4 exits: *Mat x3 / *Min) -9/Mines (discovered 3 exits: *Mat x2 / *Exi) -9/Exiles (discovered 1 exit: Min) History --------- Turn | Location | Event 13 | -11/Scrapyard | Discovered new exit (range 16) 121 | -11/Scrapyard | Entered Materials 304 | -10/Materials | Discovered new exit (range 8) 306 | -10/Materials | Build established: Mutant 381 | -10/Materials | Identified exit to Mines 465 | -10/Materials | Discovered new exit (range 10) 561 | -10/Materials | Loaded intel: 21 trap records 654 | -10/Materials | Identified exit to Materials 712 | -10/Materials | Learned 2 Mines zone layouts 721 | -10/Materials | Derelicts attacked the area 726 | -10/Materials | Learned 4 Recycling zone layouts 747 | -10/Materials | Learned Storage terminal intel 774 | -10/Materials | Learned location of 1 exit from Recycling 811 | -10/Materials | Learned location of 1 exit from Storage 1525 | -10/Materials | Entered Mines 1528 | -10/Mines | Received a Mining Laser from a helpful Derelict 1680 | -10/Mines | Discovered exit to Materials (range 7) 1683 | -10/Mines | Core integrity fell below 50% 1716 | -10/Mines | Found a damaged Exp. Sensor Array with a note attached 1723 | -10/Mines | Found Prototype Device 1796 | -10/Mines | Assembled infested the area 1896 | -10/Mines | Learned Materials trap positions 2021 | -10/Mines | Learned 2 Materials zone layouts 2094 | -10/Mines | Entered Materials 2094 | -9/Materials | Accompanied by 2 allies 2094 | -9/Materials | Evolved 2 slots: Propulsion x1, Utility x1 2095 | -9/Materials | Identified exit to Mines 2097 | -9/Materials | Loaded intel: 12 trap records 2099 | -9/Materials | Led the pair of lost Derelicts to an unsafe place 2799 | -9/Materials | Discovered new exit (range 3) 2912 | -9/Materials | Build established: Scavenger-Mutant 3541 | -9/Materials | Discovered new exit (range 8) 3595 | -9/Materials | Identified Exp. Sensor Array 3630 | -9/Materials | Identified exit to Materials 3642 | -9/Materials | Build established: Mutant 3648 | -9/Materials | Lost 3 parts (3n) 3704 | -9/Materials | Learned location of Zion (-7) 3767 | -9/Materials | Learned Storage trap positions 3820 | -9/Materials | Learned location of 3 exits from Materials 3862 | -9/Materials | Loaded intel: 35 non-interactive machine locations 4080 | -9/Materials | Central database locked down 4434 | -9/Materials | Repaired Imp. Assault Rifle 4482 | -9/Materials | Repaired Imp. Treads 4510 | -9/Materials | Repaired Lgt. Treads 4606 | -9/Materials | Entered Mines 4632 | -9/Mines | A weapon hastily lodged in a ceiling crevice suddenly fell to the ground 4688 | -9/Mines | Discovered exit to Materials (range 10) 4714 | -9/Mines | Learned location of Storage (-8) 4827 | -9/Mines | Met a Derelict shopkeep closing up shop 4944 | -9/Mines | Deemed a non-threat by the Exiles lab entrance 4946 | -9/Mines | Discovered new exit (range 5) 5093 | -9/Mines | Found a hidden stash of uninstalled traps 5146 | -9/Mines | Discovered exit to Materials (range 15) 5148 | -9/Mines | YI-UF0 nonchalantly dropped a Grenade Launcher on the ground 5385 | -9/Mines | Entered Exiles 5386 | -9/Exiles | Identified exit to Mines 5425 | -9/Exiles | Met 8R-AWN 5451 | -9/Exiles | Met EX-HEX 5494 | -9/Exiles | Met EX-BIN 5520 | -9/Exiles | Aligned with FarCom system 5521 | -9/Exiles | Given EX-Vault access code 5560 | -9/Exiles | Opened EX-Vault 5572 | -9/Exiles | Found Gui. Plasma Cannon 5603 | -9/Exiles | Warned to stay clear of 0b10 Research branches 5651 | -9/Exiles | Met EX-DEC 6078 | -9/Exiles | Attacked by the Exiles 6118 | -9/Exiles | Core integrity fell below 50% 6201 | -9/Exiles | Core integrity fell below 20% 6252 | -9/Exiles | Destroyed 8R-AWN 6276 | -9/Exiles | Lost 5 parts (1p3n1w) 6339 | -9/Exiles | Self-destructed Last Messages --------------- 06216_ Machine disabled. 06216_ HV Slug penetrates Wall. 06216_ Penetrated by HV Slug. 06218_ HV Slug penetrates Wall. 06221_ Penetrated by HV Slug. 06221_ Critical hit (Destroy). 06221_ Imp. Assault Rifle destroyed. 06224_ Penetrated by HV Slug. 06234_ Machine disabled. 06237_ Penetrated by HV Slug. 06241_ HV Slug penetrates Wall. 06241_ Penetrated by HV Slug. 06245_ Critical hit (Destroy). 06245_ Imp. Treads destroyed. 06249_ HV Slug penetrates Wall. 06249_ Penetrated by HV Slug. 06252_ 8R-AWN destroyed. 06257_ Acquired 34 matter. 06314_ The unstable cave ceiling collapses. 06334_ Acquired 7 matter. Map ----- +----------------------------------------------------+ | ??????????????????????????????????????#""""""?# | | ??????????????????????????????????????##"###??# | | ??????????????????????????????????????? ??????# | | ??????????????????????????????????????????????# | | ?????????????????????????????????????????????## | | ?????????????#######?????????????????????????#" | | ######???????#!!! "#?????????????????????????#" | | # "#??????# "#?????????????????????????#" | | ??????# "#?????????????????????????#" | | #????## ""#????????????####?????????#" | | #####" ""#???????????? """????????#" | | ##" ""#????????????" """#???????## | | #" #??????????????" #????????# | | ??# ###???????????"" #????????#" | | ????## ####????????"" "#????????#" | | ?????### # #?#?????? ""?????????#" | | #######" # ##?????" "?????????##" | | !!""""" ## #?????# #????????##"" | | !! "## ### ##??### ###?######"" | | != !"## ####X# #"###""""""" | | != "" ## """""" " "" | | !""""""##"####"# "" """ " | | ########"# #??### " | | ????????## #????## | | ?????????# #?????### | | ?????????# #???????#### @ | | ?????????# #?????????## | | ?????????# #??????????###" | | ?????????# ?????????????#""" """""" | | ?????????? ????????????##" ######" | | ?????????? ????????????#"" ""##????## | | ?????????? ????????????#""" """##??????? | | ?????????? ???????????#""" """##???????? | | ?????????? ???????????#""" ""#????????? | | ?????????? ???????????#"" ########??# | | ??????????????????????#""" ## #### | | ??????????????????????#"" """ | | ??????????????????????##"" | | ???????????????????????#"""" | | ????????????????????????# | | ????????????????????????#" " | | ????????????????????????#"""" ""## | | ????????????????????????#"" ""#### | | ?????????????????????????" """"##??# | | ?????????????????????????""" """#??## | | ?????????????????????????? ""##??# | | ??????????????????????????"" """##???#" | | ???????????????????????????""" #?????#" | | ?????????????????????????????""" #??????# " | | ??????????????????????????????? ???????#### | +----------------------------------------------------+ Best States ------------- Heat Dissipation 38 Energy Generation 14 Energy Capacity 280 Matter Stores 300 Matter Capacity 300 Sight Range 16 Terrain Scan Density 10 Armor Coverage 225 Core Shielding 20 Propulsion Shielding 33 Evasion (%) 40 Core Analysis 6 Recoil Reduction 3 Item Schematics ----------------- None Robot Schematics ------------------ None Fabricated ------------ Nothing Repaired ---------- Imp. Assault Rifle | 35% | -9/Materials Imp. Treads | 37% | -9/Materials Lgt. Treads | 20% | -9/Materials Studied --------- Hvy. Assault Rifle | -9/Materials | Hacked Assault Rifle | -9/Materials | Hacked Rocket Launcher | -9/Materials | Hacked Plasma Cutter | -9/Materials | Hacked Alien Tech Used ----------------- None Achievements -------------- None Challenges ------------ None Game ------ Seed CompanionIntegratedCoupler Manual? 0 Play Time 00:33:01 Cumulative 455.6 hours Start 2025.10.28 @ 19:07:01 End 2025.10.28 @ 19:52:41 Sessions 2 Manual Loads 0 Difficulty Rogue Special Mode None Game No. 241 Rogue 241 Adventurer 0 Explorer 0 Win Type - Total 20 Types 12/1/5/1/0/0/0/1/0/0 Lore% 92 Gallery% 85 Achievement% 77 Wizard Run 0 Options --------- Layout 2 ASCII 0 Keyboard 1 Movement Vi Keybinds 0 Fullscreen 1 Font 28/Terminus Map View 50x52 Zoom Use 0% Tactical HUD 1 Map Filters NONE Filters NONE Steam 1 RUN: 28527a90-b32d-471d-8f93-9cbcaa98ab1b